[Event "Early-Titled-Tuesday-Blitz-February-06-2024"]
[Site "Chess.com"]
[Date "2024.02.06"]
[Round "2"]
[White "deribas12345"]
[Black "Alen_Yeremyann"]
[Result "0-1"]
[WhiteElo "2508"]
[BlackElo "2727"]
[TimeControl "180+1"]
[EndTime "8:16:55 PST"]
[Termination "Alen_Yeremyann won on time"]

1. d4 {[%clk 0:03:00.9]} 1... Nf6 {[%clk 0:02:59.9]} 2. c4 {[%clk 0:03:00.7]}
2... e6 {[%clk 0:02:59.6]} 3. Nc3 {[%clk 0:03:01]} 3... Bb4 {[%clk 0:03:00.2]}
4. a3 {[%clk 0:03:01.3]} 4... Bxc3+ {[%clk 0:03:00.3]} 5. bxc3 {[%clk
0:03:02.2]} 5... d5 {[%clk 0:03:00.9]} 6. f3 {[%clk 0:03:01.7]} 6... c5 {[%clk
0:03:00.6]} 7. e3 {[%clk 0:03:02]} 7... O-O {[%clk 0:03:00]} 8. Bd3 {[%clk
0:03:02.3]} 8... Nc6 {[%clk 0:03:00.2]} 9. Ne2 {[%clk 0:03:02.6]} 9... e5 {[%clk
0:03:00.7]} 10. cxd5 {[%clk 0:03:02]} 10... Qxd5 {[%clk 0:02:49.6]} 11. e4
{[%clk 0:02:58.7]} 11... Qd8 {[%clk 0:02:50.2]} 12. d5 {[%clk 0:02:59.1]} 12...
Ne7 {[%clk 0:02:51]} 13. O-O {[%clk 0:02:49.4]} 13... Ng6 {[%clk 0:02:51.2]} 14.
f4 {[%clk 0:02:29.3]} 14... exf4 {[%clk 0:02:51]} 15. Nxf4 {[%clk 0:02:29.4]}
15... Ne5 {[%clk 0:02:50.2]} 16. Bc2 {[%clk 0:02:22.3]} 16... b6 {[%clk
0:02:41.5]} 17. Nd3 {[%clk 0:02:11.8]} 17... Nfg4 {[%clk 0:02:35.7]} 18. Nxe5
{[%clk 0:02:08.4]} 18... Nxe5 {[%clk 0:02:36.6]} 19. Bf4 {[%clk 0:02:02.9]}
19... Re8 {[%clk 0:02:36.3]} 20. h3 {[%clk 0:01:07.7]} 20... Qd6 {[%clk
0:02:35.2]} 21. Qh5 {[%clk 0:01:05.9]} 21... g6 {[%clk 0:02:21.2]} 22. Qh6
{[%clk 0:01:00.6]} 22... f6 {[%clk 0:02:16.3]} 23. Ba4 {[%clk 0:00:58.9]} 23...
Bd7 {[%clk 0:02:14.8]} 24. Bxd7 {[%clk 0:00:57.1]} 24... Qxd7 {[%clk 0:02:15.7]}
25. Bxe5 {[%clk 0:00:56.6]} 25... Rxe5 {[%clk 0:02:16.3]} 26. Rxf6 {[%clk
0:00:56.4]} 26... Qg7 {[%clk 0:02:07.4]} 27. Qxg7+ {[%clk 0:00:52.5]} 27... Kxg7
{[%clk 0:02:08.3]} 28. Raf1 {[%clk 0:00:52.4]} 28... Rxe4 {[%clk 0:02:04.8]} 29.
Rf7+ {[%clk 0:00:52.6]} 29... Kh6 {[%clk 0:02:05.4]} 30. d6 {[%clk 0:00:49.6]}
30... Rd8 {[%clk 0:02:05.4]} 31. d7 {[%clk 0:00:48.9]} 31... Re3 {[%clk
0:02:04.1]} 32. R1f4 {[%clk 0:00:44.8]} 32... Rxc3 {[%clk 0:01:50.7]} 33. Rh4+
{[%clk 0:00:41.8]} 33... Kg5 {[%clk 0:01:51.3]} 34. Rg4+ {[%clk 0:00:40.7]}
34... Kh6 {[%clk 0:01:51.3]} 35. Rh4+ {[%clk 0:00:28.3]} 35... Kg5 {[%clk
0:01:51.4]} 36. Rhxh7 {[%clk 0:00:28.1]} 36... Rd3 {[%clk 0:01:44.2]} 37. Kh2
{[%clk 0:00:26.8]} 37... Rd4 {[%clk 0:01:35.4]} 38. Re7 {[%clk 0:00:24.5]} 38...
c4 {[%clk 0:01:31.8]} 39. g3 {[%clk 0:00:24.7]} 39... Rd2+ {[%clk 0:01:31.2]}
40. Kg1 {[%clk 0:00:25]} 40... c3 {[%clk 0:01:29]} 41. Re8 {[%clk 0:00:07.9]}
41... c2 {[%clk 0:01:24.2]} 42. h4+ {[%clk 0:00:06]} 42... Kg4 {[%clk
0:01:23.8]} 43. Re4+ {[%clk 0:00:05.1]} 43... Kh3 {[%clk 0:01:23.2]} 44. Rc4
{[%clk 0:00:04.8]} 44... Rf8 {[%clk 0:01:19.4]} 0-1

[Event "Early-Titled-Tuesday-Blitz-February-06-2024"]
[Site "Chess.com"]
[Date "2024.02.06"]
[Round "2"]
[White "KanalSzachowy"]
[Black "HATilay"]
[Result "1-0"]
[WhiteElo "2360"]
[BlackElo "2519"]
[TimeControl "180+1"]
[EndTime "8:16:56 PST"]
[Termination "KanalSzachowy won by checkmate"]

1. e4 {[%clk 0:02:57.9]} 1... c5 {[%clk 0:02:59.8]} 2. Nc3 {[%clk 0:02:57.4]}
2... d6 {[%clk 0:02:57.3]} 3. d4 {[%clk 0:02:57.1]} 3... cxd4 {[%clk 0:02:57]}
4. Qxd4 {[%clk 0:02:58]} 4... Nc6 {[%clk 0:02:54.8]} 5. Qd2 {[%clk 0:02:57.4]}
5... f5 {[%clk 0:02:52]} 6. Nf3 {[%clk 0:02:40.6]} 6... Nf6 {[%clk 0:02:52]} 7.
Bc4 {[%clk 0:02:27.6]} 7... fxe4 {[%clk 0:02:34.2]} 8. Ng5 {[%clk 0:02:27.8]}
8... Ne5 {[%clk 0:02:34.6]} 9. Bb3 {[%clk 0:02:20.2]} 9... Bf5 {[%clk
0:02:34.4]} 10. O-O {[%clk 0:02:14.1]} 10... h6 {[%clk 0:02:34.5]} 11. Ne6
{[%clk 0:02:11.6]} 11... Qd7 {[%clk 0:02:26.9]} 12. Nd4 {[%clk 0:02:11.6]} 12...
g6 {[%clk 0:01:52.6]} 13. Qe2 {[%clk 0:02:03.8]} 13... Bg7 {[%clk 0:01:46.8]}
14. Bf4 {[%clk 0:02:03.5]} 14... Nc6 {[%clk 0:01:43.6]} 15. Ncb5 {[%clk
0:01:44.6]} 15... e5 {[%clk 0:01:35.6]} 16. Nxf5 {[%clk 0:01:38.2]} 16... gxf5
{[%clk 0:01:35]} 17. Rad1 {[%clk 0:01:32.6]} 17... exf4 {[%clk 0:01:07.4]} 18.
Rxd6 {[%clk 0:01:32.8]} 18... Qc8 {[%clk 0:00:24.1]} 19. Rxf6 {[%clk 0:01:13]}
19... Bxf6 {[%clk 0:00:19.2]} 20. Qh5+ {[%clk 0:01:13.5]} 20... Kd8 {[%clk
0:00:13.9]} 21. Rd1+ {[%clk 0:01:12.7]} 21... Bd4 {[%clk 0:00:09.5]} 22. Qh4+
{[%clk 0:01:11.6]} 22... Kd7 {[%clk 0:00:07.4]} 23. Nxd4 {[%clk 0:01:04.7]}
23... Kc7 {[%clk 0:00:07.8]} 24. Ne6+ {[%clk 0:01:01.5]} 24... Kb6 {[%clk
0:00:08.1]} 25. Qxf4 {[%clk 0:00:54.5]} 25... a5 {[%clk 0:00:04.9]} 26. Qe3+
{[%clk 0:00:51]} 26... Ka6 {[%clk 0:00:05.3]} 27. Nc5+ {[%clk 0:00:45.5]} 27...
Kb5 {[%clk 0:00:04.5]} 28. a4+ {[%clk 0:00:40.5]} 28... Kb6 {[%clk 0:00:03.3]}
29. Nd7+ {[%clk 0:00:41.1]} 29... Kc7 {[%clk 0:00:03.5]} 30. Qb6# {[%clk
0:00:40.3]} 1-0

[Event "Early-Titled-Tuesday-Blitz-February-06-2024"]
[Site "Chess.com"]
[Date "2024.02.06"]
[Round "2"]
[White "Herzog2012"]
[Black "MightyGMpretender"]
[Result "0-1"]
[WhiteElo "2529"]
[BlackElo "2737"]
[TimeControl "180+1"]
[EndTime "8:16:59 PST"]
[Termination "MightyGMpretender won on time"]

1. e4 {[%clk 0:03:00.9]} 1... c5 {[%clk 0:02:57.9]} 2. Nf3 {[%clk 0:03:00.1]}
2... Nc6 {[%clk 0:02:58.5]} 3. Bb5 {[%clk 0:02:57]} 3... Nf6 {[%clk 0:02:58.9]}
4. e5 {[%clk 0:02:53.7]} 4... Nd5 {[%clk 0:02:59.1]} 5. Bxc6 {[%clk 0:02:53.3]}
5... dxc6 {[%clk 0:02:54.9]} 6. d3 {[%clk 0:02:41.1]} 6... Bg4 {[%clk
0:02:53.5]} 7. O-O {[%clk 0:02:39.4]} 7... g6 {[%clk 0:02:51.2]} 8. Nbd2 {[%clk
0:02:32.9]} 8... Bg7 {[%clk 0:02:50.4]} 9. h3 {[%clk 0:02:33]} 9... Bxf3 {[%clk
0:02:50.6]} 10. Nxf3 {[%clk 0:02:33.5]} 10... O-O {[%clk 0:02:50.7]} 11. b3
{[%clk 0:02:31.1]} 11... a5 {[%clk 0:02:44.2]} 12. a4 {[%clk 0:02:23.9]} 12...
Nc7 {[%clk 0:02:44.4]} 13. Bb2 {[%clk 0:02:20.2]} 13... Ne6 {[%clk 0:02:45]} 14.
Qe2 {[%clk 0:02:11.1]} 14... Qd5 {[%clk 0:02:44.8]} 15. Rad1 {[%clk 0:02:08.7]}
15... Rfd8 {[%clk 0:02:39.7]} 16. Rfe1 {[%clk 0:01:53.3]} 16... b5 {[%clk
0:02:36.7]} 17. Qe4 {[%clk 0:01:40.8]} 17... Rab8 {[%clk 0:02:34.3]} 18. Bc3
{[%clk 0:01:27.3]} 18... b4 {[%clk 0:02:14.6]} 19. Bb2 {[%clk 0:01:21.3]} 19...
Rb7 {[%clk 0:02:14.7]} 20. Nd2 {[%clk 0:01:07.5]} 20... Ra7 {[%clk 0:02:11.4]}
21. Nc4 {[%clk 0:01:06.2]} 21... Nd4 {[%clk 0:02:08.9]} 22. Bxd4 {[%clk
0:00:55.7]} 22... cxd4 {[%clk 0:02:09]} 23. f4 {[%clk 0:00:49.2]} 23... f5
{[%clk 0:01:55.6]} 24. exf6 {[%clk 0:00:42.1]} 24... exf6 {[%clk 0:01:55.7]} 25.
Qe6+ {[%clk 0:00:31.9]} 25... Kf8 {[%clk 0:01:50.4]} 26. Re2 {[%clk 0:00:22.1]}
26... Bh6 {[%clk 0:01:27]} 27. Qxf6+ {[%clk 0:00:19.7]} 27... Kg8 {[%clk
0:01:25.2]} 28. Rde1 {[%clk 0:00:16.1]} 28... Rf8 {[%clk 0:01:09.8]} 29. Re8
{[%clk 0:00:12.6]} 29... Rf7 {[%clk 0:01:10.5]} 30. Rxf8+ {[%clk 0:00:12.7]}
30... Bxf8 {[%clk 0:01:11.1]} 31. Qe6 {[%clk 0:00:11.7]} 31... Bh6 {[%clk
0:00:54.7]} 32. g3 {[%clk 0:00:07.4]} 32... Qf3 {[%clk 0:00:54.4]} 33. Qe2
{[%clk 0:00:01.6]} 33... Qxg3+ {[%clk 0:00:53.4]} 34. Kh1 {[%clk 0:00:02.2]}
34... Bxf4 {[%clk 0:00:47.5]} 0-1

[Event "Early-Titled-Tuesday-Blitz-February-06-2024"]
[Site "Chess.com"]
[Date "2024.02.06"]
[Round "2"]
[White "GustavoAOliveira"]
[Black "BigAl"]
[Result "0-1"]
[WhiteElo "2333"]
[BlackElo "2527"]
[TimeControl "180+1"]
[EndTime "8:17:02 PST"]
[Termination "BigAl won on time"]

1. d4 {[%clk 0:03:00.9]} 1... Nf6 {[%clk 0:02:59.8]} 2. Nf3 {[%clk 0:02:59.3]}
2... g6 {[%clk 0:03:00.3]} 3. Bf4 {[%clk 0:02:58.9]} 3... Bg7 {[%clk 0:03:00.9]}
4. e3 {[%clk 0:02:59.7]} 4... O-O {[%clk 0:03:01.5]} 5. h3 {[%clk 0:03:00.5]}
5... d6 {[%clk 0:03:02.4]} 6. Be2 {[%clk 0:03:01.1]} 6... c5 {[%clk 0:03:03.3]}
7. O-O {[%clk 0:03:01.8]} 7... Be6 {[%clk 0:03:04]} 8. c4 {[%clk 0:03:01.5]}
8... cxd4 {[%clk 0:03:03.2]} 9. exd4 {[%clk 0:03:01.7]} 9... d5 {[%clk
0:03:03.5]} 10. c5 {[%clk 0:02:55.6]} 10... Nc6 {[%clk 0:03:03.7]} 11. Nc3
{[%clk 0:02:55]} 11... Ne4 {[%clk 0:03:03.3]} 12. Qa4 {[%clk 0:02:18.4]} 12...
h6 {[%clk 0:02:55.7]} 13. Rfd1 {[%clk 0:02:16.8]} 13... f5 {[%clk 0:02:21.2]}
14. Rac1 {[%clk 0:02:11.5]} 14... g5 {[%clk 0:02:18.3]} 15. Bh2 {[%clk
0:01:50.8]} 15... a6 {[%clk 0:02:17.8]} 16. Ne5 {[%clk 0:01:41.7]} 16... Nxe5
{[%clk 0:02:00.2]} 17. dxe5 {[%clk 0:01:38.5]} 17... Nxc3 {[%clk 0:01:41.6]} 18.
Rxc3 {[%clk 0:01:35.8]} 18... Qe8 {[%clk 0:01:36.9]} 19. Qb3 {[%clk 0:01:17.5]}
19... Qc6 {[%clk 0:01:32.3]} 20. Qb6 {[%clk 0:00:59.9]} 20... f4 {[%clk
0:01:26.1]} 21. Qxc6 {[%clk 0:00:31.7]} 21... bxc6 {[%clk 0:01:24.5]} 22. Ra3
{[%clk 0:00:31.4]} 22... a5 {[%clk 0:01:19.6]} 23. Bg4 {[%clk 0:00:19.8]} 23...
Bxg4 {[%clk 0:01:14.7]} 24. hxg4 {[%clk 0:00:20.7]} 24... Bxe5 {[%clk 0:01:15]}
25. Re1 {[%clk 0:00:20.3]} 25... Bxb2 {[%clk 0:01:12.1]} 26. Rb3 {[%clk
0:00:20.3]} 26... Bf6 {[%clk 0:01:12.5]} 27. g3 {[%clk 0:00:20]} 27... e5 {[%clk
0:01:07.9]} 28. gxf4 {[%clk 0:00:20.4]} 28... gxf4 {[%clk 0:01:08.5]} 29. f3
{[%clk 0:00:18.6]} 29... Rfb8 {[%clk 0:00:58.9]} 30. Reb1 {[%clk 0:00:16.2]}
30... Rxb3 {[%clk 0:00:58.6]} 31. Rxb3 {[%clk 0:00:17.1]} 31... Be7 {[%clk
0:00:57.7]} 32. Rb7 {[%clk 0:00:09.3]} 32... Bxc5+ {[%clk 0:00:55.1]} 33. Kf1
{[%clk 0:00:09.3]} 33... Bd4 {[%clk 0:00:47.9]} 34. Ke2 {[%clk 0:00:04.1]} 34...
Rc8 {[%clk 0:00:45.5]} 35. Kd3 {[%clk 0:00:03.9]} 35... c5 {[%clk 0:00:46]} 36.
Rd7 {[%clk 0:00:02.6]} 36... c4+ {[%clk 0:00:46.4]} 37. Kc2 {[%clk 0:00:02.4]}
37... Rb8 {[%clk 0:00:47.2]} 0-1

[Event "Early-Titled-Tuesday-Blitz-February-06-2024"]
[Site "Chess.com"]
[Date "2024.02.06"]
[Round "2"]
[White "JiiHart"]
[Black "CADMartin"]
[Result "0-1"]
[WhiteElo "2143"]
[BlackElo "2439"]
[TimeControl "180+1"]
[EndTime "8:17:02 PST"]
[Termination "CADMartin won on time"]

1. e4 {[%clk 0:03:00.9]} 1... c5 {[%clk 0:02:57.8]} 2. c3 {[%clk 0:03:00.7]}
2... d5 {[%clk 0:02:55.2]} 3. exd5 {[%clk 0:03:00.6]} 3... Nf6 {[%clk
0:02:55.6]} 4. Qa4+ {[%clk 0:02:55.1]} 4... b5 {[%clk 0:02:46.4]} 5. Bxb5+
{[%clk 0:02:49.8]} 5... Nbd7 {[%clk 0:02:46.2]} 6. Bc6 {[%clk 0:02:33.3]} 6...
Rb8 {[%clk 0:02:22]} 7. Nf3 {[%clk 0:02:32.6]} 7... Qc7 {[%clk 0:02:12.4]} 8.
O-O {[%clk 0:02:26.3]} 8... g6 {[%clk 0:01:52.2]} 9. Re1 {[%clk 0:02:18.6]} 9...
Bg7 {[%clk 0:01:52.3]} 10. Ne5 {[%clk 0:02:15.8]} 10... O-O {[%clk 0:01:39.2]}
11. d4 {[%clk 0:02:01.8]} 11... cxd4 {[%clk 0:01:32]} 12. cxd4 {[%clk
0:02:00.2]} 12... Nb6 {[%clk 0:01:29.2]} 13. Qa5 {[%clk 0:01:41.9]} 13... Nbxd5
{[%clk 0:01:18.8]} 14. Qxc7 {[%clk 0:01:41.3]} 14... Nxc7 {[%clk 0:01:19.7]} 15.
Nc3 {[%clk 0:01:38.3]} 15... Ne6 {[%clk 0:01:10]} 16. Nf3 {[%clk 0:01:02.8]}
16... Ng4 {[%clk 0:00:43.2]} 17. h3 {[%clk 0:00:53.1]} 17... Nh6 {[%clk
0:00:42.8]} 18. d5 {[%clk 0:00:48.8]} 18... Nc5 {[%clk 0:00:42.8]} 19. Rxe7
{[%clk 0:00:45.6]} 19... Nf5 {[%clk 0:00:42.5]} 20. Re1 {[%clk 0:00:43.6]} 20...
Nd3 {[%clk 0:00:40.7]} 21. Re2 {[%clk 0:00:23.2]} 21... Ba6 {[%clk 0:00:40.5]}
22. Rc2 {[%clk 0:00:18.3]} 22... Nb4 {[%clk 0:00:39.3]} 23. Rd2 {[%clk
0:00:16.5]} 23... Rfd8 {[%clk 0:00:34.7]} 24. g4 {[%clk 0:00:16]} 24... Nd6
{[%clk 0:00:34]} 25. Ba4 {[%clk 0:00:12.7]} 25... Nc4 {[%clk 0:00:33.1]} 26. Rd1
{[%clk 0:00:11.5]} 26... Bxc3 {[%clk 0:00:29.6]} 27. bxc3 {[%clk 0:00:11.2]}
27... Nxd5 {[%clk 0:00:30.2]} 28. Bg5 {[%clk 0:00:07]} 28... f6 {[%clk
0:00:30.4]} 0-1

[Event "Early-Titled-Tuesday-Blitz-February-06-2024"]
[Site "Chess.com"]
[Date "2024.02.06"]
[Round "2"]
[White "SargissyanSargis"]
[Black "marsofsilva"]
[Result "0-1"]
[WhiteElo "2393"]
[BlackElo "2015"]
[TimeControl "180+1"]
[EndTime "8:17:02 PST"]
[Termination "marsofsilva won by checkmate"]

1. e4 {[%clk 0:03:00.9]} 1... c5 {[%clk 0:02:59.4]} 2. Nc3 {[%clk 0:03:00.9]}
2... Nc6 {[%clk 0:02:59.1]} 3. Bb5 {[%clk 0:03:01]} 3... Nd4 {[%clk 0:02:56.9]}
4. Nf3 {[%clk 0:03:00.2]} 4... a6 {[%clk 0:02:53.5]} 5. Bd3 {[%clk 0:02:54]}
5... g6 {[%clk 0:02:53.1]} 6. Nxd4 {[%clk 0:02:50.2]} 6... cxd4 {[%clk 0:02:54]}
7. Ne2 {[%clk 0:02:50.3]} 7... Bg7 {[%clk 0:02:54.2]} 8. O-O {[%clk 0:02:51.2]}
8... d5 {[%clk 0:02:54.1]} 9. c3 {[%clk 0:02:47]} 9... dxe4 {[%clk 0:02:51.2]}
10. Bxe4 {[%clk 0:02:47.1]} 10... Nf6 {[%clk 0:02:45.4]} 11. Bf3 {[%clk
0:02:40.8]} 11... d3 {[%clk 0:02:44.5]} 12. Nf4 {[%clk 0:01:58.8]} 12... O-O
{[%clk 0:02:24.1]} 13. Re1 {[%clk 0:01:48.5]} 13... Bh6 {[%clk 0:01:50]} 14. Qa4
{[%clk 0:01:24.5]} 14... Qd6 {[%clk 0:00:59.5]} 15. g3 {[%clk 0:01:24.4]} 15...
e5 {[%clk 0:00:53.7]} 16. Ng2 {[%clk 0:01:19.5]} 16... b5 {[%clk 0:00:45]} 17.
Qh4 {[%clk 0:01:15.8]} 17... e4 {[%clk 0:00:31.6]} 18. Qxh6 {[%clk 0:00:22.9]}
18... exf3 {[%clk 0:00:31.3]} 19. Ne3 {[%clk 0:00:22.8]} 19... Ng4 {[%clk
0:00:26.6]} 20. Nxg4 {[%clk 0:00:22.2]} 20... Bxg4 {[%clk 0:00:27.5]} 21. b3
{[%clk 0:00:19.7]} 21... Rae8 {[%clk 0:00:26.6]} 22. Re3 {[%clk 0:00:19.6]}
22... Rxe3 {[%clk 0:00:25.6]} 23. Qxe3 {[%clk 0:00:16.9]} 23... Qd7 {[%clk
0:00:24.1]} 24. Ba3 {[%clk 0:00:14.6]} 24... Re8 {[%clk 0:00:23.9]} 25. Qd4
{[%clk 0:00:15.1]} 25... Qxd4 {[%clk 0:00:21.8]} 26. cxd4 {[%clk 0:00:15.1]}
26... Re2 {[%clk 0:00:22.1]} 27. Bb4 {[%clk 0:00:14.7]} 27... Be6 {[%clk
0:00:17.4]} 28. Rc1 {[%clk 0:00:14.7]} 28... Kg7 {[%clk 0:00:17]} 29. Rc6 {[%clk
0:00:13.8]} 29... Re1# {[%clk 0:00:16.8]} 0-1

[Event "Early-Titled-Tuesday-Blitz-February-06-2024"]
[Site "Chess.com"]
[Date "2024.02.06"]
[Round "2"]
[White "Natalya_Buksa"]
[Black "mkllnd1517"]
[Result "1-0"]
[WhiteElo "2561"]
[BlackElo "2362"]
[TimeControl "180+1"]
[EndTime "8:17:03 PST"]
[Termination "Natalya_Buksa won by resignation"]

1. d4 {[%clk 0:01:30.1]} 1... Nf6 {[%clk 0:02:57]} 2. Nc3 {[%clk 0:01:29.2]}
2... d5 {[%clk 0:02:55.9]} 3. Bf4 {[%clk 0:01:29.8]} 3... a6 {[%clk 0:02:45.3]}
4. e3 {[%clk 0:01:30.3]} 4... e6 {[%clk 0:02:45.9]} 5. Nf3 {[%clk 0:01:30.2]}
5... Bd6 {[%clk 0:02:46.5]} 6. Ne5 {[%clk 0:01:29.6]} 6... O-O {[%clk
0:02:46.1]} 7. g4 {[%clk 0:01:26.7]} 7... c5 {[%clk 0:02:44]} 8. g5 {[%clk
0:01:26.6]} 8... cxd4 {[%clk 0:02:07.5]} 9. exd4 {[%clk 0:01:23.4]} 9... Ne4
{[%clk 0:02:07.2]} 10. Bd3 {[%clk 0:01:22.8]} 10... f6 {[%clk 0:02:02]} 11. Nxe4
{[%clk 0:01:13.8]} 11... dxe4 {[%clk 0:02:00.2]} 12. Bxe4 {[%clk 0:01:13.5]}
12... fxe5 {[%clk 0:01:45.9]} 13. Bxh7+ {[%clk 0:01:09.1]} 13... Kxh7 {[%clk
0:01:24]} 14. Qh5+ {[%clk 0:01:09.3]} 14... Kg8 {[%clk 0:01:24.6]} 15. g6 {[%clk
0:01:09.9]} 15... Rxf4 {[%clk 0:01:20.9]} 16. Qh7+ {[%clk 0:01:10.3]} 16... Kf8
{[%clk 0:01:21.2]} 17. Qh8+ {[%clk 0:01:11]} 17... Ke7 {[%clk 0:01:21.9]} 18.
Qxg7+ {[%clk 0:01:11.9]} 18... Ke8 {[%clk 0:01:20]} 19. O-O-O {[%clk 0:01:09.8]}
19... Qf6 {[%clk 0:01:12.9]} 20. Qg8+ {[%clk 0:01:06.5]} 20... Qf8 {[%clk
0:01:12.4]} 21. Qh7 {[%clk 0:01:06.3]} 21... Rg4 {[%clk 0:00:25.3]} 22. Rhg1
{[%clk 0:01:05.3]} 22... Rxg1 {[%clk 0:00:25.3]} 23. Rxg1 {[%clk 0:01:04.3]}
23... Qxf2 {[%clk 0:00:25.4]} 24. Rd1 {[%clk 0:00:56]} 24... Qf4+ {[%clk
0:00:16.9]} 25. Kb1 {[%clk 0:00:55]} 25... Qf3 {[%clk 0:00:17.1]} 26. Re1 {[%clk
0:00:47.6]} 26... Qf2 {[%clk 0:00:14.8]} 27. Rc1 {[%clk 0:00:47.6]} 27... Nd7
{[%clk 0:00:13.7]} 28. g7 {[%clk 0:00:47.4]} 28... Nf6 {[%clk 0:00:14]} 29. Qg6+
{[%clk 0:00:43.7]} 29... Ke7 {[%clk 0:00:09.8]} 30. Qg5 {[%clk 0:00:35.2]} 30...
Qf4 {[%clk 0:00:03.2]} 31. g8=Q {[%clk 0:00:33.1]} 1-0

[Event "Early-Titled-Tuesday-Blitz-February-06-2024"]
[Site "Chess.com"]
[Date "2024.02.06"]
[Round "2"]
[White "SereneSalmon"]
[Black "ansko1999"]
[Result "0-1"]
[WhiteElo "2286"]
[BlackElo "2684"]
[TimeControl "180+1"]
[EndTime "8:17:04 PST"]
[Termination "ansko1999 won by checkmate"]

1. Nf3 {[%clk 0:03:00.9]} 1... b6 {[%clk 0:02:58.2]} 2. c4 {[%clk 0:03:00]} 2...
Bb7 {[%clk 0:02:58.1]} 3. Nc3 {[%clk 0:02:58.9]} 3... Nf6 {[%clk 0:02:56.8]} 4.
d3 {[%clk 0:02:55.6]} 4... Bxf3 {[%clk 0:02:44.4]} 5. gxf3 {[%clk 0:02:56.5]}
5... c5 {[%clk 0:02:43.5]} 6. e4 {[%clk 0:02:55.2]} 6... Nc6 {[%clk 0:02:38.5]}
7. Be3 {[%clk 0:02:49.1]} 7... d6 {[%clk 0:02:33.8]} 8. f4 {[%clk 0:02:47.4]}
8... g6 {[%clk 0:02:31.7]} 9. Be2 {[%clk 0:02:44.9]} 9... Bg7 {[%clk 0:02:30.6]}
10. Qd2 {[%clk 0:02:44.2]} 10... Nd7 {[%clk 0:02:27.8]} 11. O-O-O {[%clk
0:02:34.2]} 11... Nd4 {[%clk 0:02:25]} 12. Kb1 {[%clk 0:02:29.3]} 12... a6
{[%clk 0:02:23.2]} 13. h4 {[%clk 0:02:20.7]} 13... b5 {[%clk 0:02:18.9]} 14. h5
{[%clk 0:02:20.7]} 14... b4 {[%clk 0:02:11.1]} 15. Na4 {[%clk 0:02:17.4]} 15...
Qa5 {[%clk 0:02:07.7]} 16. b3 {[%clk 0:02:14.9]} 16... Nb6 {[%clk 0:01:57.3]}
17. Nb2 {[%clk 0:02:06.6]} 17... Qa3 {[%clk 0:01:41.9]} 18. hxg6 {[%clk
0:01:57.1]} 18... fxg6 {[%clk 0:01:34.6]} 19. f5 {[%clk 0:01:53.4]} 19... a5
{[%clk 0:01:26.8]} 20. fxg6 {[%clk 0:01:45]} 20... hxg6 {[%clk 0:01:25.3]} 21.
Rxh8+ {[%clk 0:01:45.2]} 21... Bxh8 {[%clk 0:01:26.1]} 22. Rh1 {[%clk
0:01:41.6]} 22... Bf6 {[%clk 0:01:01.9]} 23. Bg5 {[%clk 0:01:31.1]} 23... Bxg5
{[%clk 0:00:27]} 24. Qxg5 {[%clk 0:01:32]} 24... Nxe2 {[%clk 0:00:20.6]} 25.
Qxg6+ {[%clk 0:01:03.7]} 25... Kd7 {[%clk 0:00:19.7]} 26. Qg4+ {[%clk
0:01:03.8]} 26... Kc7 {[%clk 0:00:18.7]} 27. Qxe2 {[%clk 0:01:04]} 27... a4
{[%clk 0:00:18.5]} 28. Qc2 {[%clk 0:01:01.7]} 28... axb3 {[%clk 0:00:17]} 29.
Qxb3 {[%clk 0:01:02.1]} 29... Qa7 {[%clk 0:00:16.2]} 30. Rh7 {[%clk 0:01:01.4]}
30... Kd7 {[%clk 0:00:15.2]} 31. f4 {[%clk 0:00:49.7]} 31... Rg8 {[%clk
0:00:09.6]} 32. Qd1 {[%clk 0:00:48.7]} 32... Rg2 {[%clk 0:00:08.9]} 33. Qh1
{[%clk 0:00:42.4]} 33... Rxb2+ {[%clk 0:00:08.1]} 34. Kxb2 {[%clk 0:00:43.3]}
34... Qa3+ {[%clk 0:00:08.2]} 35. Kb1 {[%clk 0:00:42.4]} 35... Qxd3+ {[%clk
0:00:08.7]} 36. Kb2 {[%clk 0:00:39]} 36... Nxc4+ {[%clk 0:00:09.1]} 37. Kc1
{[%clk 0:00:35.1]} 37... Qc3+ {[%clk 0:00:09.3]} 38. Kd1 {[%clk 0:00:35.1]}
38... Qd2# {[%clk 0:00:09.4]} 0-1

[Event "Early-Titled-Tuesday-Blitz-February-06-2024"]
[Site "Chess.com"]
[Date "2024.02.06"]
[Round "2"]
[White "annamaja"]
[Black "Roman_Ovetchkin"]
[Result "1-0"]
[WhiteElo "2382"]
[BlackElo "2640"]
[TimeControl "180+1"]
[EndTime "8:17:04 PST"]
[Termination "annamaja won by resignation"]

1. e4 {[%clk 0:03:00.9]} 1... c6 {[%clk 0:02:59.6]} 2. Nc3 {[%clk 0:03:00.7]}
2... d5 {[%clk 0:03:00.5]} 3. Nf3 {[%clk 0:03:01]} 3... Bg4 {[%clk 0:02:58.7]}
4. h3 {[%clk 0:02:59]} 4... Bxf3 {[%clk 0:02:58.4]} 5. Qxf3 {[%clk 0:02:59.9]}
5... e6 {[%clk 0:02:59]} 6. d3 {[%clk 0:02:55.5]} 6... g6 {[%clk 0:02:57.2]} 7.
Bd2 {[%clk 0:02:51.8]} 7... Bg7 {[%clk 0:02:56.7]} 8. O-O-O {[%clk 0:02:51.5]}
8... Nd7 {[%clk 0:02:53.6]} 9. g4 {[%clk 0:02:48.9]} 9... b5 {[%clk 0:02:49.3]}
10. exd5 {[%clk 0:02:44.2]} 10... cxd5 {[%clk 0:02:48.9]} 11. Nxb5 {[%clk
0:02:34.6]} 11... Qb6 {[%clk 0:02:45.1]} 12. d4 {[%clk 0:02:08]} 12... a6 {[%clk
0:02:23.9]} 13. Qa3 {[%clk 0:02:07.7]} 13... Bf8 {[%clk 0:02:16.9]} 14. Qa4
{[%clk 0:01:53.6]} 14... Rc8 {[%clk 0:02:03.7]} 15. Nc3 {[%clk 0:01:38.6]} 15...
Rc6 {[%clk 0:02:01.9]} 16. Re1 {[%clk 0:01:30.9]} 16... Ne7 {[%clk 0:01:59.1]}
17. Bg2 {[%clk 0:01:27]} 17... Bg7 {[%clk 0:01:58.3]} 18. Bxd5 {[%clk
0:01:09.6]} 18... Rxc3 {[%clk 0:01:51.7]} 19. Bxe6 {[%clk 0:00:55.1]} 19...
Rxc2+ {[%clk 0:01:48.4]} 20. Kxc2 {[%clk 0:00:35.6]} 20... fxe6 {[%clk
0:01:48.6]} 21. Re4 {[%clk 0:00:35.1]} 21... Nc6 {[%clk 0:01:20.5]} 22. Rxe6+
{[%clk 0:00:34.3]} 22... Kf7 {[%clk 0:01:16.6]} 23. Rxc6 {[%clk 0:00:21.6]}
23... Qb5 {[%clk 0:00:32.2]} 24. Qxb5 {[%clk 0:00:20.7]} 24... axb5 {[%clk
0:00:33.1]} 25. d5 {[%clk 0:00:19]} 25... Be5 {[%clk 0:00:30.7]} 26. f4 {[%clk
0:00:18.1]} 26... Bb8 {[%clk 0:00:29.9]} 27. Re1 {[%clk 0:00:18.2]} 27... Rd8
{[%clk 0:00:28.7]} 28. Rce6 {[%clk 0:00:14.8]} 28... Nf8 {[%clk 0:00:28]} 29.
Re7+ {[%clk 0:00:14.8]} 29... Kg8 {[%clk 0:00:28.2]} 30. Bc3 {[%clk 0:00:13.5]}
1-0